fUSD/lending_fUSD_20260519
["ID","MTS","AMOUNT","RATE_DAILY","PERIOD"]
[422603449,1779143441000,-151.0,0.00018551,2]
[422603452,1779143441000,-151.0,0.00018551,2]
[422603456,1779143441000,-151.0,0.00018551,2]
[422603454,1779143441000,-151.0,0.00018551,2]
[422603391,1779143441000,-664.13,0.000176,2]
[422603424,1779143441000,-198.39535058,0.000184,2]
[422603422,1779143441000,-4609.0,0.000182,2]
[422603443,1779143441000,-151.0,0.00018551,2]
[422603430,1779143441000,-721.12765535,0.00018551,2]
[422603395,1779143441000,-500.0,0.00017808,2]
[422603432,1779143441000,-500.0,0.00018551,2]
[422603394,1779143441000,-500.0,0.00017808,2]
[422603397,1779143441000,-500.0,0.00017808,2]
[422603399,1779143441000,-500.0,0.00017808,2]
[422603403,1779143441000,-500.0,0.00017808,2]
[422603405,1779143441000,-500.0,0.00017808,2]
[422603407,1779143441000,-500.0,0.00017808,2]
[422603402,1779143441000,-500.0,0.00017808,2]
[422603400,1779143441000,-500.0,0.00017808,2]
[422603398,1779143441000,-500.0,0.00017808,2]
[422603404,1779143441000,-500.0,0.00017808,2]
[422603406,1779143441000,-500.0,0.00017808,2]
[422603408,1779143441000,-500.0,0.00017808,2]
[422603412,1779143441000,-628.96718285,0.00017808,2]
[422603401,1779143441000,-500.0,0.00017808,2]
[422603423,1779143441000,-296.0,0.00018267,2]
[422603410,1779143441000,-500.0,0.00017808,2]
[422603418,1779143441000,-350.0,0.00018,2]
[422603411,1779143441000,-500.0,0.00017808,2]
[422603414,1779143441000,-500.0,0.00017808,2]
[422603416,1779143441000,-501.50270021,0.00018,2]
[422603409,1779143441000,-500.0,0.00017808,2]
[422603419,1779143441000,-150.0,0.00018168,2]
[422603420,1779143441000,-436.32,0.00018174,2]
[422603417,1779143441000,-198.39535058,0.00018,2]
[422603413,1779143441000,-500.0,0.00017808,2]
[422603415,1779143441000,-500.0,0.00017808,2]
[422603421,1779143441000,-198.39535058,0.000182,2]
[422603431,1779143441000,-500.0,0.00018551,2]
[422603507,1779143442000,-496.0,0.0002,2]
[422603498,1779143442000,-200.0,0.00019647,2]
[422603500,1779143442000,-4681.93475632,0.00019652,2]
[422603510,1779143442000,-492.0,0.0002,2]
[422603505,1779143442000,-155.0,0.0002,2]
[422603499,1779143442000,-2157.14243826,0.00019647,2]
[422603491,1779143442000,-200.0,0.00019099,2]
[422603490,1779143442000,-150.413945,0.00019089,2]
[422603489,1779143442000,-153.02,0.0001907,2]
[422603494,1779143442000,-151.0,0.00019178,2]
[422603495,1779143442000,-150.0,0.000192,2]
[422603506,1779143442000,-159.0,0.0002,2]
[422603497,1779143442000,-563.65224417,0.00019351,2]
[422603502,1779143442000,-2855.28641335,0.000199,3]
[422603533,1779143442000,-2319.72410669,0.00020743,2]
[422603501,1779143442000,-359.62984989,0.00019652,2]
[422603511,1779143442000,-161.0,0.0002,2]
[422603512,1779143442000,-228.0,0.0002,2]
[422603503,1779143442000,-2160.11340606,0.0002,15]
[422603508,1779143442000,-400.0,0.0002,2]
[422603513,1779143442000,-200.0,0.0002,10]
[422603509,1779143442000,-400.0,0.0002,2]
[422603514,1779143442000,-410.0,0.0002,2]
[422603515,1779143442000,-2000.0,0.0002,2]
[422603517,1779143442000,-170.02119813,0.0002,2]
[422603537,1779143442000,-3862.80568896,0.00021,2]
[422603530,1779143442000,-2000.0,0.000206,2]
[422603527,1779143442000,-536.4,0.00020381,2]
[422603488,1779143442000,-398.11299808,0.00019,2]
[422603504,1779143442000,-2958.090214,0.0002,2]
[422603496,1779143442000,-2000.0,0.0001922,2]
[422603458,1779143442000,-151.0,0.00018551,2]
[422603493,1779143442000,-1450.0,0.00019177,2]
[422603459,1779143442000,-151.0,0.00018551,2]
[422603538,1779143442000,-155.0,0.00021,2]
[422603460,1779143442000,-151.0,0.00018551,2]
[422603457,1779143442000,-151.0,0.00018551,2]
[422603461,1779143442000,-151.0,0.00018551,2]
[422603462,1779143442000,-151.0,0.00018551,2]
[422603471,1779143442000,-151.0,0.00018551,2]
[422603465,1779143442000,-151.0,0.00018551,2]
[422603470,1779143442000,-151.0,0.00018551,2]
[422603472,1779143442000,-151.0,0.00018551,2]
[422603468,1779143442000,-151.0,0.00018551,2]
[422603473,1779143442000,-151.0,0.00018551,2]
[422603479,1779143442000,-1258.57,0.000189,2]
[422603466,1779143442000,-151.0,0.00018551,2]
[422603492,1779143442000,-2080.17592889,0.00019099,2]
[422603485,1779143442000,-1770.65065623,0.00019,2]
[422603481,1779143442000,-162.86,0.00018993,2]
[422603467,1779143442000,-151.0,0.00018551,2]
[422603475,1779143442000,-151.0,0.00018551,2]
[422603477,1779143442000,-280.93,0.0001872,2]
[422603474,1779143442000,-151.0,0.00018551,2]
[422603463,1779143442000,-151.0,0.00018551,2]
[422603469,1779143442000,-151.0,0.00018551,2]
[422603484,1779143442000,-300.0,0.00018999,2]
[422603482,1779143442000,-300.0,0.00018999,2]
[422603483,1779143442000,-300.0,0.00018999,2]
[422603476,1779143442000,-163.82,0.000187,2]
[422603478,1779143442000,-153.0,0.00018764,2]
[422603486,1779143442000,-49743.47956168,0.00019,2]
[422603487,1779143442000,-49743.47956168,0.00019,2]
[422603480,1779143442000,-191.941676,0.00018983,2]
[422603528,1779143442000,-150.76109754,0.0002058,2]
[422603464,1779143442000,-151.0,0.00018551,2]
[422603534,1779143442000,-300.0,0.00020999,2]
[422603555,1779143442000,-200.0,0.00021414,2]
[422603571,1779143442000,-409.0,0.00021528,7]
[422603570,1779143442000,-447.0,0.00021528,7]
[422603560,1779143442000,-200.0,0.00021478,2]
[422603547,1779143442000,-1258.57,0.000211,2]
[422603567,1779143442000,-9298.9905133,0.000215,2]
[422603553,1779143442000,-200.0,0.00021414,2]
[422603554,1779143442000,-200.0,0.00021414,2]
[422603566,1779143442000,-243.621,0.00021478,2]
[422603561,1779143442000,-150.0,0.00021478,2]
[422603563,1779143442000,-150.0,0.00021478,2]
[422603581,1779143442000,-150.0,0.00021669,7]
[422603583,1779143442000,-200.0,0.00021839,2]
[422603587,1779143442000,-151.0,0.00021918,2]
[422603549,1779143442000,-500.0,0.0002129,2]
[422603582,1779143442000,-173.0,0.00021826,2]
[422603585,1779143442000,-1268.52,0.00021851,2]
[422603577,1779143442000,-1354.0,0.00021623,2]
[422603586,1779143442000,-5000.0,0.00021918,2]
[422603575,1779143442000,-1224.0,0.00021623,2]
[422603580,1779143442000,-750.0,0.00021669,2]
[422603578,1779143442000,-3544.0,0.00021623,2]
[422603584,1779143442000,-2494.55939289,0.00021839,2]
[422603589,1779143442000,-5037.79875775,0.00021936,2]
[422603588,1779143442000,-811.25,0.00021918,2]
[422603593,1779143442000,-5000.0,0.00021936,2]
[422603590,1779143442000,-5000.0,0.00021936,2]
[422603592,1779143442000,-5000.0,0.00021936,2]
[422603594,1779143442000,-3995.27628182,0.00022,4]
[422603522,1779143442000,-2694.0,0.0002,2]
[422603574,1779143442000,-1270.0,0.00021623,2]
[422603556,1779143442000,-200.0,0.00021414,2]
[422603591,1779143442000,-5000.0,0.00021936,2]
[422603573,1779143442000,-150.0,0.00021623,2]
[422603548,1779143442000,-563.65224417,0.00021201,2]
[422603518,1779143442000,-2000.0,0.0002,2]
[422603531,1779143442000,-164.0,0.0002074,2]
[422603526,1779143442000,-2236.95670848,0.00020195,2]
[422603542,1779143442000,-228.0,0.00021,2]
[422603543,1779143442000,-410.0,0.00021,2]
[422603540,1779143442000,-496.0,0.00021,2]
[422603525,1779143442000,-200.0,0.00020195,2]
[422603541,1779143442000,-161.0,0.00021,2]
[422603532,1779143442000,-200.0,0.00020743,2]
[422603519,1779143442000,-1268.52,0.0002,2]
[422603536,1779143442000,-6111.0,0.00021,2]
[422603516,1779143442000,-157.0,0.0002,2]
[422603544,1779143442000,-157.0,0.00021,2]
[422603521,1779143442000,-297.0,0.0002,2]
[422603535,1779143442000,-15000.0,0.00021,2]
[422603524,1779143442000,-300.0,0.000201,10]
[422603559,1779143442000,-309.0,0.00021414,2]
[422603565,1779143442000,-185.0,0.00021478,2]
[422603550,1779143442000,-200.0,0.00021291,2]
[422603569,1779143442000,-982.0,0.00021528,7]
[422603523,1779143442000,-6453.0,0.0002002,2]
[422603546,1779143442000,-163.82,0.00021037,2]
[422603557,1779143442000,-200.0,0.00021414,2]
[422603562,1779143442000,-150.0,0.00021478,2]
[422603558,1779143442000,-200.0,0.00021414,2]
[422603551,1779143442000,-2405.55389864,0.00021291,2]
[422603572,1779143442000,-151.53,0.00021548,2]
[422603545,1779143442000,-297.0,0.00021,2]
[422603539,1779143442000,-159.0,0.00021,2]
[422603564,1779143442000,-150.0,0.00021478,2]
[422603641,1779143443000,-200.0,0.00024031,2]
[422603638,1779143443000,-410.0,0.00024,2]
[422603634,1779143443000,-496.0,0.00024,2]
[422603632,1779143443000,-811.25,0.00023744,2]
[422603637,1779143443000,-228.0,0.00024,2]
[422603629,1779143443000,-517.0,0.000235,2]
[422603633,1779143443000,-9240.16,0.000239,2]
[422603635,1779143443000,-500.0,0.00024,2]
[422603636,1779143443000,-161.0,0.00024,2]
[422603630,1779143443000,-770.0,0.000235,2]
[422603639,1779143443000,-297.0,0.00024,2]
[422603640,1779143443000,-500.0,0.00024029,2]
[422603649,1779143443000,-500.0,0.00024397,2]
[422603650,1779143443000,-150.0,0.00024478,2]
[422603648,1779143443000,-162.0,0.00024397,2]
[422603647,1779143443000,-4474.91678066,0.00024397,2]
[422603643,1779143443000,-3996.51,0.00024087,2]
[422603642,1779143443000,-2884.75459676,0.00024031,2]
[422603644,1779143443000,-6073.0,0.00024224,2]
[422603651,1779143443000,-150.0,0.00024478,2]
[422603646,1779143443000,-150.0,0.00024397,2]
[422603645,1779143443000,-536.4,0.00024324,2]
[422603653,1779143443000,-200.0,0.00024579,2]
[422603660,1779143443000,-179.26,0.00024658,2]
[422603656,1779143443000,-1224.0,0.00024623,2]
[422603631,1779143443000,-1268.52,0.00023703,2]
[422603657,1779143443000,-1354.0,0.00024623,2]
[422603652,1779143443000,-2000.0,0.000245,2]
[422603628,1779143443000,-2781.82699784,0.00023483,2]
[422603613,1779143443000,-1171.0,0.00022844,5]
[422603622,1779143443000,-1106.99626856,0.00023179,2]
[422603659,1779143443000,-151.0,0.00024658,2]
[422603599,1779143443000,-496.0,0.00022,2]
[422603600,1779143443000,-450.0,0.00022,2]
[422603598,1779143443000,-164.0,0.00022,2]
[422603596,1779143443000,-163.09958891,0.00022,2]
[422603601,1779143443000,-161.0,0.00022,2]
[422603614,1779143443000,-200.0,0.00022935,2]
[422603605,1779143443000,-297.0,0.00022,2]
[422603611,1779143443000,-1267.75,0.00022466,2]
[422603602,1779143443000,-228.0,0.00022,2]
[422603604,1779143443000,-164.19920998,0.00022,2]
[422603612,1779143443000,-280.93,0.00022691,2]
[422603606,1779143443000,-9035.0,0.00022022,2]
[422603609,1779143443000,-200.0,0.00022387,2]
[422603608,1779143443000,-536.4,0.00022353,2]
[422603607,1779143443000,-1009.74,0.000222,2]
[422603610,1779143443000,-2586.85809042,0.00022387,2]
[422603603,1779143443000,-410.0,0.00022,2]
[422603615,1779143443000,-2682.57183977,0.00022935,2]
[422603616,1779143443000,-496.0,0.00023,2]
[422603618,1779143443000,-228.0,0.00023,2]
[422603619,1779143443000,-410.0,0.00023,2]
[422603620,1779143443000,-297.0,0.00023,2]
[422603621,1779143443000,-563.65224417,0.0002305,2]
[422603624,1779143443000,-2000.0,0.000232,2]
[422603627,1779143443000,-200.0,0.00023483,2]
[422603623,1779143443000,-1258.57,0.000232,7]
[422603625,1779143443000,-150.0,0.0002322,2]
[422603617,1779143443000,-161.0,0.00023,2]
[422603626,1779143443000,-227.0,0.0002322,2]
[422603654,1779143443000,-1131.32748565,0.00024579,2]
[422603664,1779143443000,-151.0,0.00024658,2]
[422603658,1779143443000,-3544.0,0.00024623,2]
[422603704,1779143443000,-399.53,0.00025234,30]
[422603710,1779143443000,-492.0,0.000257,7]
[422603711,1779143443000,-5530.0,0.000257,3]
[422603705,1779143443000,-1258.57,0.000254,7]
[422603708,1779143443000,-811.25,0.00025571,2]
[422603709,1779143443000,-500.0,0.00025671,2]
[422603707,1779143443000,-1268.52,0.00025554,7]
[422603712,1779143443000,-1586.0,0.000258,3]
[422603714,1779143443000,-150.0,0.00025804,21]
[422603726,1779143443000,-550.0,0.00026,2]
[422603718,1779143443000,-194.678278,0.0002589,2]
[422603716,1779143443000,-399.53,0.00025811,7]
[422603715,1779143443000,-152.82493513,0.00025804,21]
[422603706,1779143443000,-399.53,0.00025523,2]
[422603725,1779143443000,-400.29843382,0.00026,20]
[422603721,1779143443000,-151.53,0.00025986,2]
[422603723,1779143443000,-4583.43430776,0.00026,2]
[422603720,1779143443000,-672.34372572,0.0002595,21]
[422603717,1779143443000,-32045.70781256,0.0002589,5]
[422603719,1779143443000,-9645.43349268,0.0002595,21]
[422603724,1779143443000,-219.37052768,0.00026,2]
[422603727,1779143443000,-399.53,0.00026099,30]
[422603728,1779143443000,-163.0,0.0002612,3]
[422603733,1779143443000,-2313.0,0.000264,3]
[422603731,1779143443000,-399.53,0.00026388,2]
[422603655,1779143443000,-1270.0,0.00024623,2]
[422603730,1779143443000,-10000.0,0.00026334,2]
[422603732,1779143443000,-27861.85259256,0.000264,2]
[422603722,1779143443000,-608.90335722,0.0002599,2]
[422603713,1779143443000,-2000.0,0.000258,2]
[422603729,1779143443000,-536.4,0.00026296,2]
[422603693,1779143443000,-151.936578,0.00025,2]
[422603703,1779143443000,-498.45747932,0.00025176,2]
[422603662,1779143443000,-379.42,0.00024658,2]
[422603661,1779143443000,-1000.0,0.00024658,2]
[422603669,1779143443000,-150.0,0.00024864,2]
[422603668,1779143443000,-263.0,0.00024864,2]
[422603667,1779143443000,-330.0,0.00024705,5]
[422603671,1779143443000,-563.65224417,0.000249,2]
[422603681,1779143443000,-416.72611124,0.00025,2]
[422603678,1779143443000,-502.03499012,0.00025,2]
[422603676,1779143443000,-56288.56973458,0.00025,7]
[422603672,1779143443000,-4681.93475632,0.000249,2]
[422603673,1779143443000,-359.62984989,0.000249,2]
[422603670,1779143443000,-150.0,0.00024864,2]
[422603674,1779143443000,-399.53,0.00024946,7]
[422603666,1779143443000,-399.53,0.00024658,2]
[422603679,1779143443000,-168.0,0.00025,2]
[422603682,1779143443000,-151.0,0.00025,2]
[422603702,1779143443000,-200.0,0.00025127,2]
[422603697,1779143443000,-151.0,0.00025,2]
[422603701,1779143443000,-151.0,0.00025,2]
[422603699,1779143443000,-151.0,0.00025,2]
[422603690,1779143443000,-151.936578,0.00025,2]
[422603695,1779143443000,-151.936578,0.00025,2]
[422603685,1779143443000,-151.0,0.00025,2]
[422603675,1779143443000,-151.0,0.00024997,7]
[422603687,1779143443000,-151.936578,0.00025,2]
[422603691,1779143443000,-312.0,0.00025,2]
[422603680,1779143443000,-234.18200703,0.00025,2]
[422603683,1779143443000,-151.0,0.00025,2]
[422603677,1779143443000,-794274.01596214,0.00025,2]
[422603766,1779143444000,-503.0,0.00027137,2]
[422603772,1779143444000,-8239.37678057,0.0002739,2]
[422603779,1779143444000,-500.0,0.00027397,2]
[422603764,1779143444000,-246.0,0.00027123,2]
[422603761,1779143444000,-344.0,0.00027123,2]
[422603767,1779143444000,-399.53,0.00027253,2]
[422603758,1779143444000,-3466.0,0.00027123,2]
[422603759,1779143444000,-348.16038289,0.00027123,2]
[422603774,1779143444000,-811.23502315,0.00027397,2]
[422603778,1779143444000,-500.0,0.00027397,2]
[422603776,1779143444000,-3540.23603582,0.00027397,2]
[422603762,1779143444000,-303.0,0.00027123,2]
[422603784,1779143444000,-150.0,0.00027397,2]
[422603765,1779143444000,-1586.0,0.00027128,3]
[422603771,1779143444000,-4170.70656321,0.0002739,2]
[422603770,1779143444000,-2313.0,0.0002736,3]
[422603781,1779143444000,-500.0,0.00027397,2]
[422603773,1779143444000,-305.15456273,0.00027397,7]
[422603782,1779143444000,-596.62736062,0.00027397,2]
[422603785,1779143444000,-1500.0,0.00027397,2]
[422603783,1779143444000,-150.0,0.00027397,2]
[422603786,1779143444000,-526.82,0.00027397,2]
[422603787,1779143444000,-300.0,0.00027397,2]
[422603789,1779143444000,-151.0,0.00027397,2]
[422603760,1779143444000,-391.0,0.00027123,2]
[422603768,1779143444000,-2313.0,0.00027259,3]
[422603780,1779143444000,-500.0,0.00027397,2]
[422603744,1779143444000,-399.53,0.00026964,30]
[422603777,1779143444000,-500.0,0.00027397,2]
[422603790,1779143444000,-151.0,0.00027397,2]
[422603735,1779143444000,-163.0,0.00026488,3]
[422603734,1779143444000,-5530.0,0.000264,5]
[422603736,1779143444000,-399.53,0.00026676,7]
[422603737,1779143444000,-2313.0,0.00026764,3]
[422603738,1779143444000,-500.0,0.00026768,2]
[422603740,1779143444000,-2313.0,0.00026808,3]
[422603739,1779143444000,-163.0,0.00026808,3]
[422603742,1779143444000,-2313.0,0.00026808,3]
[422603741,1779143444000,-2313.0,0.00026808,3]
[422603743,1779143444000,-2313.0,0.00026851,3]
[422603745,1779143444000,-9240.16,0.00027,2]
[422603746,1779143444000,-250.0,0.00027,2]
[422603748,1779143444000,-530.0,0.00027,2]
[422603750,1779143444000,-164.0,0.00027,7]
[422603747,1779143444000,-1049.35722162,0.00027,2]
[422603756,1779143444000,-2000.0,0.000271,2]
[422603753,1779143444000,-2574.681521,0.0002701,2]
[422603754,1779143444000,-163.0,0.0002704,3]
[422603749,1779143444000,-2000.0,0.00027,2]
[422603752,1779143444000,-172.0,0.00027,7]
[422603751,1779143444000,-404.0,0.00027,7]
[422603755,1779143444000,-2313.0,0.0002704,3]
[422603757,1779143444000,-150.0,0.00027123,20]
[422603763,1779143444000,-279.0,0.00027123,2]
[422603769,1779143444000,-1258.57,0.000273,7]
[422603788,1779143444000,-151.0,0.00027397,2]
[422603775,1779143444000,-3540.23603582,0.00027397,2]
[422603792,1779143444000,-151.0,0.00027397,2]
[422603826,1779143444000,-1222.0,0.00027623,2]
[422603829,1779143444000,-404.0,0.00027671,14]
[422603819,1779143444000,-5196.25,0.000274,2]
[422603827,1779143444000,-1219.855,0.00027623,2]
[422603822,1779143444000,-5196.25,0.000274,2]
[422603825,1779143444000,-399.53,0.00027541,7]
[422603823,1779143444000,-163.0,0.00027404,3]
[422603828,1779143444000,-3544.0,0.00027623,2]
[422603830,1779143444000,-928.0,0.000277,2]
[422603832,1779143444000,-503.0,0.00027774,2]
[422603842,1779143444000,-399.53,0.00028118,2]
[422603843,1779143444000,-152.0,0.0002812,3]
[422603818,1779143444000,-5196.25,0.000274,2]
[422603841,1779143444000,-187.87,0.00028,2]
[422603831,1779143444000,-2313.0,0.00027724,3]
[422603839,1779143444000,-9298.9905133,0.00028,2]
[422603834,1779143444000,-399.53,0.0002783,30]
[422603840,1779143444000,-600.0,0.00028,2]
[422603837,1779143444000,-720.37187793,0.0002797,2]
[422603838,1779143444000,-3219.28908123,0.00027999,2]
[422603835,1779143444000,-200.00095698,0.000279,4]
[422603845,1779143444000,-536.4,0.00028267,2]
[422603844,1779143444000,-400.0,0.0002817,2]
[422603846,1779143444000,-437.4,0.00028344,2]
[422603848,1779143444000,-1500.0,0.00028364,15]
[422603791,1779143444000,-151.0,0.00027397,2]
[422603833,1779143444000,-500.0,0.000278,7]
[422603821,1779143444000,-5196.25,0.000274,2]
[422603836,1779143444000,-2313.0,0.00027956,3]
[422603824,1779143444000,-1268.52,0.00027405,7]
[422603820,1779143444000,-5196.25,0.000274,2]
[422603793,1779143444000,-151.0,0.00027397,2]
[422603798,1779143444000,-151.0,0.00027397,2]
[422603796,1779143444000,-151.0,0.00027397,2]
[422603794,1779143444000,-151.0,0.00027397,2]
[422603795,1779143444000,-151.00000004,0.00027397,2]
[422603797,1779143444000,-151.0,0.00027397,2]
[422603799,1779143444000,-151.0,0.00027397,2]
[422603800,1779143444000,-279.00399,0.00027397,2]
[422603805,1779143444000,-151.0,0.00027397,2]
[422603804,1779143444000,-151.0,0.00027397,2]
[422603802,1779143444000,-151.0,0.00027397,2]
[422603847,1779143444000,-450.0,0.00028344,2]
[422603801,1779143444000,-151.0,0.00027397,2]
[422603813,1779143444000,-379.42,0.00027397,2]
[422603803,1779143444000,-151.0,0.00027397,2]
[422603809,1779143444000,-151.0,0.00027397,2]
[422603810,1779143444000,-151.0,0.00027397,2]
[422603816,1779143444000,-267.34,0.000274,7]
[422603817,1779143444000,-5950.58,0.000274,14]
[422603812,1779143444000,-26597.81,0.00027397,10]
[422603811,1779143444000,-31917.37,0.00027397,10]
[422603815,1779143444000,-368.62,0.000274,7]
[422603807,1779143444000,-283.307346,0.00027397,2]
[422603806,1779143444000,-151.0,0.00027397,2]
[422603808,1779143444000,-151.0,0.00027397,2]
[422603814,1779143444000,-22164.84,0.00027397,10]
[422603864,1779143445000,-1012.0,0.0002863,2]
[422603870,1779143445000,-271.54,0.0002863,2]
[422603862,1779143445000,-20332.99329974,0.00028514,2]
[422603861,1779143445000,-503.0,0.00028411,3]
[422603868,1779143445000,-1011.99,0.0002863,2]
[422603871,1779143445000,-318.0,0.00028634,3]
[422603873,1779143445000,-166.06,0.00028661,7]
[422603877,1779143445000,-213.07,0.00028661,7]
[422603874,1779143445000,-271.52,0.00028661,7]
[422603879,1779143445000,-1012.0,0.00028693,30]
[422603881,1779143445000,-271.52,0.00028693,30]
[422603866,1779143445000,-271.52,0.0002863,2]
[422603872,1779143445000,-1012.0,0.00028661,7]
[422603857,1779143445000,-1500.0,0.00028364,15]
[422603854,1779143445000,-1500.0,0.00028364,15]
[422603867,1779143445000,-165.98,0.0002863,2]
[422603860,1779143445000,-399.53,0.00028406,7]
[422603859,1779143445000,-3498.0,0.000284,2]
[422603865,1779143445000,-166.06,0.0002863,2]
[422603858,1779143445000,-1734.927438,0.00028364,15]
[422603855,1779143445000,-1500.0,0.00028364,15]
[422603856,1779143445000,-1500.0,0.00028364,15]
[422603849,1779143445000,-1500.0,0.00028364,15]
[422603850,1779143445000,-1500.0,0.00028364,15]
[422603851,1779143445000,-1500.0,0.00028364,15]
[422603852,1779143445000,-1500.0,0.00028364,15]
[422603853,1779143445000,-1500.0,0.00028364,15]
[422603875,1779143445000,-165.98,0.00028661,7]
[422603863,1779143445000,-492.0,0.000286,7]
[422603878,1779143445000,-271.54,0.00028661,7]
[422603885,1779143445000,-271.54,0.00028693,30]
[422603880,1779143445000,-166.06,0.00028693,30]
[422603869,1779143445000,-213.07,0.0002863,2]
[422603909,1779143445000,-599.98127524,0.00025061,7]
[422603908,1779143445000,-2104.27869595,0.00025061,7]
[422603907,1779143445000,-172.31948854,0.00025061,7]
[422603905,1779143445000,-135.28054027,0.00025061,7]
[422603902,1779143445000,-2321.31006558,0.00022,2]
[422603901,1779143445000,-151.0,0.00015,2]
[422603904,1779143445000,-177.23446967,0.00022,2]
[422603900,1779143445000,-2549.63762505,0.00013898,2]
[422603903,1779143445000,-513.31546475,0.00022,2]
[422603898,1779143445000,-151.0,0.00025,2]
[422603895,1779143445000,-151.0,0.00015,2]
[422603896,1779143445000,-163.42260015,0.00021528,7]
[422603899,1779143445000,-5258.39913664,0.00028718,2]
[422603897,1779143445000,-119.57739985,0.00021528,7]
[422603889,1779143445000,-52566.68074691,0.00028718,2]
[422603892,1779143445000,-378.57708216,0.00028718,2]
[422603893,1779143445000,-667.96197469,0.00028718,2]
[422603890,1779143445000,-1100.0,0.00028718,2]
[422603891,1779143445000,-61739.75462791,0.00028718,2]
[422603888,1779143445000,-154.06086695,0.000287,30]
[422603886,1779143445000,-399.53,0.00028695,30]
[422603884,1779143445000,-213.07,0.00028693,30]
[422603894,1779143445000,-151.0,0.00015,2]
[422603910,1779143445000,-950.07404696,0.00028121,7]
[422603882,1779143445000,-165.98,0.00028693,30]
[422603887,1779143445000,-5950.58,0.000287,14]
[422603883,1779143445000,-1011.99,0.00028693,30]
[422603876,1779143445000,-1011.99,0.00028661,7]
[422603917,1779143446000,-927.0,0.00019551,2]
[422603916,1779143446000,-5982.07073363,0.00012634,2]
[422603921,1779143446000,-2061.78595304,0.00028121,7]
[422603915,1779143446000,-2853.30916637,0.00012634,2]
[422603920,1779143446000,-927.0,0.00025551,2]
[422603918,1779143446000,-215.94512088,0.00020987,3]
[422603922,1779143446000,-927.0,0.00028551,2]
[422603923,1779143446000,-26243.36335025,0.00028718,2]
[422603919,1779143446000,-927.0,0.00022551,2]
[422603924,1779143450000,152.0,7.241e-05,2]
[422603925,1779143486000,1986.62,0.00029457,120]
[422603927,1779143595000,1395.214584,0.00028244,120]
[422603930,1779143654000,415.02,0.00026412,120]
[422603931,1779143654000,415.02,0.00029053,120]
[422603932,1779143801000,697.607292,0.0002499,120]
[422603933,1779143952000,150.35093008,0.000301,120]
[422603935,1779144540000,1000.0,0.00030134,120]
[422603938,1779144631000,-150.51,0.00010387,2]
[422603941,1779144631000,-150.0,0.00011219,2]
[422603939,1779144631000,-250.0,0.00010647,2]
[422603942,1779144631000,-150.0,0.00011329,2]
[422603940,1779144631000,-150.0,0.00011109,2]
[422603947,1779144631000,-150.0,0.00011549,2]
[422603946,1779144631000,-391.48,0.00011468,2]
[422603944,1779144631000,-250.0,0.00011426,2]
[422603945,1779144631000,-150.0,0.00011439,2]
[422603943,1779144631000,-345.99919109,0.00011426,2]